Cogmind - Beta 17 @@@ ROGUE MODE // 2026.08.13 @ 20:53:34 Player: Mingebag Result: Destroyed by Y-45 Defender with Heavy Assault Rifle Performance ------------- Evolutions (1) 500 Regions Visited (3) 600 Robots Destroyed (38) 190 Value Destroyed (1140) 1140 Prototype IDs (5) 100 Alien Tech Used (0) 0 Bonus (0) 0 TOTAL SCORE: 2530 Bonus ------- None Cogmind --------- Core Integrity 0/400 Matter 300/300 Energy 280/280 System Corruption 0% Temperature Cool (9) Movement Treading (160) Location -9/Storage Parts ------- > --- POWER (1) -------- Heavy Ion Engine > --- PROPULSION (4) --- Light Treads Light Treads Light Treads Aluminum Leg > --- UTILITY (2) ------ Large Storage Unit Structural Scanner > --- WEAPON (2) ------- Field Laser Grenade Launcher > --- INVENTORY (15) --- Cooled Ion Engine Aluminum Leg Improved Flight Unit Improved Flight Unit Structural Scanner Sensor Array Sensor Array Seismic Detector Hardened Light Armor Plating Improved Medium Laser Field Laser Particle Cannon Improved Light Cannon Mining Laser Peak State ------------ > --- POWER ------------ Heavy Ion Engine > --- PROPULSION ------- Light Treads Light Treads Light Treads Light Treads > --- UTILITY ---------- Large Storage Unit Improved Light Armor Plating > --- WEAPON ----------- Field Laser Field Laser > --- INVENTORY -------- Heavy Ion Engine Heavy Ion Engine Cooled Ion Engine Light Treads Aluminum Leg Improved Flight Unit Improved Flight Unit Sensor Array Sensor Array Seismic Detector Improved Medium Laser Particle Cannon Grenade Launcher Grenade Launcher Mining Laser [Rating: 19] Favorites ----------- Power Light Ion Engine Engine Light Ion Engine Propulsion Light Treads Treads Light Treads Leg Aluminum Leg Utility Large Storage Unit Device Sensor Array Storage Large Storage Unit Protection Improved Light Armor Plating Weapon Field Laser Energy Gun Field Laser Energy Cannon Particle Cannon Ballistic Gun Heavy Assault Rifle Launcher Grenade Launcher Special Weapon Mining Laser Build | -11 -10 -9 -9 ------- Run | Yrd Mat Mat Sto Slots Evolved 2 | . . 2 . Power . | . . . . Propulsion 2 | . . 2 . Utility . | . . . . Weapon . | . . . . Parts Attached 47 | 4 7 27 9 Power 9 | 1 1 3 4 Engine 9 | 1 1 3 4 Core . | . . . . Reactor . | . . . . Propulsion 15 | 2 . 10 3 Treads 9 | 2 . 4 3 Leg 6 | . . 6 . Wheel . | . . . . Hover . | . . . . Flight . | . . . . Utility 10 | 1 3 5 1 Device 5 | . 1 3 1 Storage 3 | 1 2 . . Processor . | . . . . Hackware . | . . . . Protection 2 | . . 2 . Artifact . | . . . . Weapon 13 | . 3 9 1 Energy Gun 8 | . 3 5 . Energy Cannon 1 | . . 1 . Ballistic Gun 1 | . . 1 . Ballistic Cannon . | . . . . Launcher 2 | . . 2 . Special Weapon 1 | . . . 1 Impact Weapon . | . . . . Slashing Weapon . | . . . . Piercing Weapon . | . . . . Special Melee Weapon . | . . . . Unidentified Prototypes 3 | . . 1 2 Parts Lost 14 | . 1 8 5 Power 2 | . . 2 . Propulsion 9 | . . 5 4 Utility 1 | . . . 1 Weapon 2 | . 1 1 . Highest Loss Streak 4 | . 1 4 2 To Critical Strikes . | . . . . Average Backups 12 | 7 11 14 13 Power 1 | . 1 . 1 Propulsion 4 | 3 4 3 3 Utility 2 | . 2 4 2 Weapon 4 | 2 2 4 5 Tool/Special . | . . . . Unused Backups 15 | . 3 1 11 Power 2 | . . . 2 Propulsion 8 | . 3 . 5 Utility 4 | . . 1 3 Weapon 1 | . . . 1 Tool/Special . | . . . . Average Slot Usage (%) 95 | . 95 96 93 Engine 11 | . 14 10 11 Treads 28 | . 28 21 37 Leg 9 | . . 19 2 Device 9 | . 8 9 9 Storage 12 | . 16 11 11 Protection 1 | . . 1 1 Energy Gun 17 | . 27 16 9 Energy Cannon 1 | . . 1 4 Launcher 2 | . . 1 5 Peak Build Rating 19 | 4 8 17 19 Average Rating 10 | 3 7 13 15 On Entrance 6 | . 4 8 15 Avg Prop Armor Cover (%) 7 | . . 9 5 Naked Turns . | . . . . Heaviest Build 38 | 8 29 36 38 Greatest Support 80 | 40 40 80 80 Greatest Overweight (x) 9 | . . 9 1 Average Overweight (x) . | . . . . Largest Inventory Capacity 15 | 8 15 15 15 Average Capacity 13 | 7 14 15 15 Most Carried 15 | 8 15 15 15 Average Carried 12 | 7 11 14 13 Final Capacity 15 | 8 15 15 15 Final Carried 15 | 8 14 15 14 Class Distribution -------------------- 60% | Mutant 39% | Scavenger-Mutant Dominant Class ---------------- Mutant | -10/Materials Scavenger-Mutant | -9/Materials Scavenger-Mutant | -9/Storage Resources | -11 -10 -9 -9 ----------- Run | Yrd Mat Mat Sto Matter Collected 1074 | 240 162 404 268 Remotely . | . . . . Salvage Created 1252 | . 319 637 296 Parts 82 | . 20 36 26 Haulers Intercepted 2 | . . 1 1 Recyclers Shooed 1 | . 1 . . Parts Field Recycled . | . . . . Retrieved Matter . | . . . . Parts Self-Destructed . | . . . . Prevented . | . . . . Parts Restored . | . . . . Kills | -11 -10 -9 -9 ------- Run | Yrd Mat Mat Sto Combat Hostiles Destroyed 30 | . 9 12 9 Guns 23 | . 8 9 6 Cannons 2 | . . 1 1 AOE 5 | . 1 2 2 Classes Destroyed 8 | . 3 4 1 Worker 2 | . . . 2 Hauler 2 | . . 1 1 Operator 2 | . . 1 1 Watcher 2 | . 1 1 . Swarmer 7 | . 3 . 4 Grunt 12 | . 6 4 2 Duelist 2 | . . 2 . Sentry 9 | . . 6 3 Best Kill Streak 4 | . 3 4 3 Combat Bots Only 4 | . 3 4 3 Max Kills in Single Turn 2 | . 2 2 2 Gunslinging 1 | . 1 . . Exploded 2 | . 1 2 1 Melee . | . . . . Uniques/NPCs Destroyed . | . . . . Combat | -11 -10 -9 -9 -------- Run | Yrd Mat Mat Sto Hostile Shots Fired 254 | . 45 105 104 Missed 61 | . 10 31 20 Hits 193 | . 35 74 84 Melee 17 | . . 17 . Projectile 176 | . 35 57 84 Critical Strikes 7 | . . 6 1 Damage Taken 2761 | . 401 1405 955 Core 515 | . 108 228 179 Absorbed by Shields . | . . . . Core Remaining (%) 78 | 100 56 . . Volleys Fired 131 | . 28 52 51 Largest 2 | . 2 2 2 Hottest 131 | . 90 131 131 Shots Fired 231 | . 56 90 85 Gun 186 | . 56 83 47 Cannon 15 | . . 5 10 Launcher 28 | . . 2 26 Special 2 | . . . 2 Kinetic 13 | . . 13 . Thermal 160 | . 28 73 59 Explosive 28 | . . 2 26 Electromagnetic 30 | . 28 2 . Robot Hit Streak 19 | . 7 19 12 Robot Miss Streak 4 | . 3 2 4 Penetration Max . | . . . . Secondary Targets 6 | . 3 1 2 Max Gunslinging Chain 1 | . 1 1 1 Shots Hit Robots 140 | . 37 66 37 Core Hits 64 | . 16 26 22 Critical Kills . | . . . . Critical Parts Destroyed . | . . . . Critical Strikes 7 | . 3 3 1 Burn 7 | . 3 3 1 Melee Attacks . | . . . . Impact . | . . . . Slashing . | . . . . Piercing . | . . . . Sneak Attacks . | . . . . Combat Hostiles . | . . . . Follow-up Attacks . | . . . . Damage Inflicted 2476 | . 503 1098 875 Guns 1753 | . 459 839 455 Cannons 186 | . . 61 125 Explosions 535 | . 42 198 295 Melee . | . . . . Ramming 2 | . 2 . . Kinetic 129 | . . 129 . Thermal 1603 | . 252 771 580 Explosive 493 | . . 198 295 Electromagnetic 249 | . 249 . . Impact . | . . . . Slashing . | . . . . Piercing . | . . . . Highest Corruption . | . . . . Average Corruption . | . . . . Corruption Purged . | . . . . Corruption Blocked . | . . . . Overload Shots . | . . . . Overflow Damage 7 | . . . 7 Projectiles . | . . . . Explosions 7 | . . . 7 Melee . | . . . . Knockbacks . | . . . . Impact . | . . . . Kinetic . | . . . . Secondary . | . . . . Self-Inflicted Damage 199 | . 31 69 99 Shots 6 | . 1 2 3 Rammed 1 | . 1 . . Targets Rammed 1 | . 1 . . Kicked . | . . . . Crushed . | . . . . Highest Temperature 495 | . 195 273 495 Average Temperature 112 | . 69 68 193 Received Heat Transfer 663 | . 159 309 195 Effects 14 | . . . 14 Shutdowns 1 | . . . 1 Energy Bleed 2 | . . . 2 Interference 2 | . . . 2 Matter Decay 2 | . . . 2 Short Circuit 2 | . . . 2 Damage (minor) 2 | . . . 2 Damage (major) 3 | . . . 3 Siege Activations . | . . . . Martial Activations . | . . . . Shielding Activations . | . . . . Robots Disrupted . | . . . . Combat Hostiles . | . . . . Robots Corrupted . | . . . . Combat Hostiles . | . . . . Parts Fried 1 | . 1 . . Impact Corruptions . | . . . . Robots Melted . | . . . . Combat Hostiles . | . . . . Parts Melted 7 | . 2 3 2 Heat Transferred 4144 | . 851 1998 1295 Parts Sabotaged . | . . . . Parts Stolen . | . . . . Parts Stripped . | . . . . Power Chain Reactions 1 | . 1 . . Alert | -11 -10 -9 -9 ------- Run | Yrd Mat Mat Sto Maximum Alert Level 1 | . . . 1 Low Security (%) 97 | 100 100 100 91 Level 1 2 | . . . 8 Level 2 . | . . . . Level 3 . | . . . . Level 4 . | . . . . Level 5 . | . . . . High Security . | . . . . Max Security . | . . . . Peak Influence 220 | . 87 128 220 Initial 34 | . . . 34 Average 42 | . 29 36 97 Influence Increases 1147 | . 253 393 501 Destroy 0b10 Robot/C 600 | . 180 240 180 Destroy 0b10 Robot/NC 40 | . 5 15 20 Destroy Leader 178 | . 32 94 52 Successful Hack 28 | . 17 4 7 Disable Machine 120 | . . 15 105 Destroy Structure 91 | . 4 10 77 Partial Spotted 15 | . . . 15 Lose Combat Pursuer 75 | . 15 15 45 Influence Decreases 976 | . 253 311 412 Entered New Map 48 | . . . 48 Time Decay 743 | . 168 261 314 Lost Part 110 | . 10 50 50 Purge Threat 75 | . 75 . . Squads Dispatched 3 | . 1 1 1 Investigation 2 | . 1 . 1 Extermination . | . . . . Reinforcement 1 | . . 1 . Assault . | . . . . Garrison . | . . . . Intercept . | . . . . Searches Triggered . | . . . . Construction Impeded . | . . . . Haulers Reinforced . | . . . . Active Scanning Responses . | . . . . Cargo Convoy Interrupts . | . . . . Stealth | -11 -10 -9 -9 --------- Run | Yrd Mat Mat Sto Distress Signals 4 | . 1 1 2 Communications Jammed . | . . . . Distress Signals . | . . . . Times Spotted 53 | . 15 20 18 Peak Tracking Total 6 | . 6 5 5 Tactical Retreats 5 | . 1 1 3 Traps | -11 -10 -9 -9 ------- Run | Yrd Mat Mat Sto Traps Triggered 2 | . . . 2 Indirectly . | . . . . Trap Hack Attempts . | . . . . Triggered . | . . . . Disarmed . | . . . . Reprogrammed . | . . . . Reused . | . . . . Traps Extracted . | . . . . Installed . | . . . . Triggered . | . . . . Machines | -11 -10 -9 -9 ---------- Run | Yrd Mat Mat Sto Machines Disabled 8 | . . 1 7 Max in Single Turn 2 | . . 1 2 Machines Repaired . | . . . . Machines Dismantled . | . . . . Machines Sabotaged . | . . . . Overloaded Fab Kills . | . . . . Hacking | -11 -10 -9 -9 --------- Run | Yrd Mat Mat Sto Machines Accessed 9 | . 4 3 2 Terminals 7 | . 4 2 1 Fabricators . | . . . . Repair Stations . | . . . . Recycling Units 1 | . . . 1 Scanalyzers 1 | . . 1 . Garrison Access . | . . . . Total Hacks 27 | . 8 12 7 Successful 15 | . 5 6 4 Failed 11 | . 3 5 3 Catastrophic 1 | . 1 . . Database Lockouts 1 | . . 1 . Manual . | . . . . Terminals 19 | . 8 7 4 Fabricators . | . . . . Repair Stations . | . . . . Recycling Units 3 | . . . 3 Scanalyzers 5 | . . 5 . Garrison Access . | . . . . Terminal Hacks 9 | . 5 2 2 Record 1 | . . 1 . Prototype ID Bank 1 | . 1 . . Branch Access Points 1 | . . . 1 Unreport Threat 1 | . 1 . . Locate Traps 1 | . . . 1 Dispatch Records 1 | . . 1 . Registered Components 1 | . 1 . . Zone Layout 2 | . 2 . . Fabricator Hacks . | . . . . Repair Station Hacks . | . . . . Recycling Unit Hacks 2 | . . . 2 Process 1 | . . . 1 Retrieve Matter 1 | . . . 1 Scanalyzer 4 | . . 4 . Retrieve Study 4 | . . 4 . Garrison Access Hacks . | . . . . Unauthorized Hacks . | . . . . Terminals . | . . . . Fabricators . | . . . . Repair Stations . | . . . . Recycling Units . | . . . . Scanalyzers . | . . . . Garrison Access . | . . . . Data Cores Recovered 1 | . . . 1 Used . | . . . . Hacking Detections 6 | . 2 3 1 Full Trace Events 2 | . 1 1 . Feedback Events . | . . . . Feedback Blocked . | . . . . Robot Schematics Acquired . | . . . . Robots Built . | . . . . Authchips . | . . . . Time . | . . . . Total Robot Build Rating . | . . . . Part Schematics Acquired . | . . . . Parts Built . | . . . . Authchips . | . . . . Time . | . . . . Total Part Build Rating . | . . . . Part Studies Acquired 4 | . . 4 . Parts Repaired . | . . . . Time . | . . . . Parts Recycled . | . . . . Recycled Matter 480 | . . . 480 Retrieved Matter 719 | . . . 719 Retrieved Components . | . . . . Parts Scanalyzed . | . . . . Part Schematics Acquired . | . . . . Parts Damaged . | . . . . Bothacking | -11 -10 -9 -9 ------------ Run | Yrd Mat Mat Sto Used RIF Installer . | . . . . Robots Hacked . | . . . . Non-combat . | . . . . Combat . | . . . . Robot Hacks Applied . | . . . . Relay Couplers Released . | . . . . Fabnet Peak Effective % . | . . . . Robots Rewired . | . . . . Allies Hacked . | . . . . Hacks Repelled . | . . . . Allies | -11 -10 -9 -9 -------- Run | Yrd Mat Mat Sto Total Allies . | . . . . Largest Group . | . . . . Highest-Rated Group . | . . . . Highest-Rated Ally . | . . . . Total Orders . | . . . . Ally Attacks . | . . . . Total Damage . | . . . . Kills . | . . . . Allies Corrupted . | . . . . Allies Melted . | . . . . Intel | -11 -10 -9 -9 ------- Run | Yrd Mat Mat Sto Active Infowar (turns) 1992 | . 426 945 621 Sensors 1869 | . 426 914 529 Structural 92 | . . . 92 Seismic 31 | . . 31 . Robot Analysis Total . | . . . . Derelict Logs Recovered . | . . . . Drone Launches . | . . . . Drone Recoveries . | . . . . Exploration | -11 -10 -9 -9 ------------- Run | Yrd Mat Mat Sto Turns Passed 3174 | 569 731 1137 737 Spaces Moved 1400 | 189 322 556 333 Core 5 | 3 . 2 . Treads 1085 | 186 322 244 333 Legs 310 | . . 310 . Wheels . | . . . . Hover . | . . . . Flight . | . . . . Fastest Speed 50 | 50 160 105 160 Average Speed 153 | 158 160 143 160 Slowest Speed 500 | 160 160 500 240 Overloaded Moves . | . . . . Propulsion Burnouts . | . . . . Robots Hopped . | . . . . Potential Cave-ins . | . . . . Cave-ins Triggered . | . . . . Exploration Rate (%) 36 | 17 46 37 45 Regions Visited 3 Branch Regions 1 Pre-discovered Areas . | . . . . Known Exits Taken . | . . . . Unknown Exits Taken 3 | 1 1 1 . Scrap Searched . | . . . . Spaces Dug . | . . . . Terrain Destroyed 95 | . 3 9 83 Melee . | . . . . Projectile . | . . . . AOE 95 | . 3 9 83 Terrain Rammed . | . . . . Walls Destroyed . | . . . . Machines Disabled . | . . . . Actions | -11 -10 -9 -9 --------- Run | Yrd Mat Mat Sto Total 2182 | 458 482 797 445 Wait 499 | 257 105 123 14 Move 1397 | 188 321 555 333 Hop . | . . . . Pick Up 55 | 9 15 19 12 Fast Attach 12 | 3 . 5 4 Attach 23 | 1 4 13 5 Detach 2 | . . 1 1 Swap 39 | . 3 20 16 Drop 23 | . 5 9 9 Fire 131 | . 28 52 51 Melee . | . . . . Ram . | . . . . Kick . | . . . . Crush 1 | . 1 . . Escape Stasis . | . . . . Rewire . | . . . . Trap . | . . . . Miscellaneous . | . . . . Route ------- -11/Scrapyard -10/Materials (discovered 2 exits: *Mat / [*Min]) -9/Materials (discovered 3 exits: [*Min] / *Sto x2) -9/Storage (discovered 1 exit: Rec) History --------- Turn | Location | Event 13 | -11/Scrapyard | Discovered new exit (range 16) 570 | -11/Scrapyard | Entered Materials 571 | -10/Materials | Build established: Mutant 632 | -10/Materials | Discovered new exit (range 8) 1165 | -10/Materials | Discovered new exit (range 10) 1301 | -10/Materials | Entered another Materials area 1301 | -9/Materials | Evolved 2 slots: Propulsion x2 1368 | -9/Materials | Discovered new exit (range 14) 1701 | -9/Materials | Lost 4 parts (1p3n) 2053 | -9/Materials | Build established: Scavenger-Mutant 2070 | -9/Materials | Discovered new exit (range 14) 2073 | -9/Materials | Discovered new exit (range 9) 2116 | -9/Materials | Core integrity fell below 50% 2322 | -9/Materials | Central database locked down 2438 | -9/Materials | Entered Storage 2448 | -9/Storage | Identified exit to Recycling 2747 | -9/Storage | Core integrity fell below 20% 3175 | -9/Storage | Destroyed by Y-45 Defender with Heavy Assault Rifle Last Messages --------------- >>Recycling(Process) Analyzing inventory... Recycling at 100% efficiency: Heat Sink (12) Lgt. Treads (47) Weight Redist. System (7) Med. Storage Unit (125) Med. Matter Pod (12) Hover Unit (15) Med. Storage Unit (125) Med. Matter Pod (12) Med. Storage Unit (125) >>Retrieve(Matter) Matter ejected: 719 03129_ W-16 Scout sends out distress signal. 03153_ U-05 Engineer lays Concrete. 03155_ S-10 Pest destroyed. 03157_ Acquired 10 matter. 03159_ R-06 Scavenger collects Lgt. Assault Rifle. Map ----- +----------------------------------------------------+ | ????# #???????????????????????????????????? | | ????# #???????????????????????????????????? | | ????# #???????????????????????????????????? | | ????# #???????????????????????????????????? | | ????# #???????????????????????????????????? | | ????# +???????????????????????????????????? | | ????# #???????????????????????????????????? | | ##### #???????????????????????????????????? | | # #???????????????????????????????????? | | # #???????????????????????????????????? | | # #???????????????????????????????????? | | # #######?????????????????????????????? | | # #?????????????????????????????? | | # ### #### #???????????#####?????????????? | | # ## ### ###################???????????? | | # ## ###/############## ####???????????? | | # ## # # ! ####??????????? | | # ## # "" # !! " u####??????????? | | # ## ! # "" # !!! # ##??????????? | | # ## # """ # #########???? | | # ## ! # """ ""# ############??? | | # ## # %Y"# # ##??? | | # ##! # ""# # """"" ##??? | | # ####### # # """"" ##??? | | # ###########+#########/###r# """"" ##??? | | # @ /Y ##??? | | # a r # " " ##??? | | ###########+#########+##% + "R" ##??? | | ## ####### # ## # """ ##??? | | ## # # # ##### ###??? | | " ## # ## ###########??? | | " " ## # ## #####???###???? | | "*=" ## # """ #""""##???????????? | | "=[" ## !/ # """ ##????????????????? | | "[[" ## # """ ##?>??????????????? | | """" ## # ##????????????????? | | ?? ## ##### ######????????????????? | | #??####### #??###### #????????????????? | | ?????????# [ #??###### ##????????????????? | | ?????????# #???????####????????????????? | | ?????????# #???????????????????????????? | | ?????????########???????????????????????????? | | ????????????????????????????????????????????? | | ????????????????????????????????????????????? | | ????????????????????????????????????????????? | | ????????????????????????????????????????????? | | ????????????????????????????????????????????? | | | | | | | +----------------------------------------------------+ Best States ------------- Heat Dissipation 28 Energy Generation 14 Energy Capacity 280 Matter Stores 300 Matter Capacity 400 Sight Range 16 Robot Scan Range 14 Terrain Scan Density 10 Armor Coverage 150 Evasion (%) 55 Recoil Reduction 4 Item Schematics ----------------- None Robot Schematics ------------------ None Fabricated ------------ Nothing Repaired ---------- Nothing Studied --------- Aluminum Leg | -9/Materials | Hacked Grenade Launcher | -9/Materials | Hacked Flight Unit | -9/Materials | Hacked Lgt. Ion Engine | -9/Materials | Hacked Alien Tech Used ----------------- None Achievements -------------- None Challenges ------------ None Game ------ Seed FrostShockboltWarhead Manual? 0 Play Time 00:46:31 Cumulative 13.6 hours Start 2026.08.13 @ 20:04:24 End 2026.08.13 @ 20:53:34 Sessions 1 Manual Loads 0 Difficulty Rogue Special Mode None Game No. 12 Rogue 12 Adventurer 0 Explorer 0 Win Type - Total 0 Types 0/0/0/0/0/0/0/0/0/0 Lore% 2 Gallery% 13 Achievement% 12 Wizard Run 0 Options --------- Layout 1 ASCII 0 Keyboard 0 Movement Mouse Keybinds 0 Fullscreen 1 Font 24/Smallcaps Map View 50x35 Zoom Use 0% Tactical HUD 1 Map Filters NONE Filters NONE Steam 1 RUN: ef150299-0eca-4285-854d-17010addbfcc